bitfinex-derivatives/quotes_ETHF0:USTF0_20250107
["timestamp","ask_amount","ask_price","bid_price","bid_amount"]
[1736272853286,0.29041,3444.5,3444.2,0.29042]
[1736272853587,3.2078,3444.9,3444.1,3.2078]
[1736272853885,0.29038,3444.9,3444.6,0.2904]
[1736272854087,3.2078,3445.3,3444.7,8.9378]
[1736272854574,0.29037,3444.9,3444.7,8.9378]
[1736272854775,3.2078,3445.3,3444.7,8.9378]
[1736272854977,3.2078,3444.9,3444.0,3.2078]
[1736272855175,3.2078,3444.7,3443.5,8.9378]
[1736272855385,3.2078,3444.3,3443.5,8.9378]
[1736272855579,3.2078,3443.9,3442.9,11.35347513]
[1736272855781,0.29052,3443.2,3442.9,16.19171513]
[1736272855976,0.29053,3443.0,3442.9,4.5477]
[1736272856180,0.29051,3443.3,3443.0,0.29053]
[1736272856386,3.2078,3443.4,3442.9,4.83824]
[1736272856387,0.29052,3443.2,3442.9,4.83824]
[1736272856780,3.4983,3443.4,3443.1,0.29052]
[1736272857087,3.2078,3443.4,3443.2,0.29051]
[1736272857479,0.29048,3443.7,3443.4,0.2905]
[1736272857678,3.49827,3443.8,3443.5,0.29049]
[1736272857885,0.29048,3443.7,3443.4,0.29049]
[1736272858293,0.29047,3443.7,3443.4,0.29049]
[1736272858890,0.29048,3443.6,3443.2,3.2078]
[1736272859084,0.29048,3443.7,3443.4,0.29049]
[1736272859292,0.2905,3443.5,3443.2,3.49831]
[1736272859485,0.29052,3443.2,3442.9,4.83824]
[1736272859685,3.2078,3443.8,3442.9,4.5477]
[1736272859990,0.29051,3443.4,3443.1,0.29052]
[1736272860586,3.49827,3443.8,3443.5,0.29048]
[1736272860786,3.2078,3443.8,3443.1,3.2078]
[1736272861297,3.2078,3443.8,3443.7,0.29047]
[1736272861684,3.49826,3443.8,3443.1,3.2078]
[1736272861989,0.29049,3443.6,3443.1,3.2078]
[1736272862191,3.2078,3443.8,3443.1,3.2078]
[1736272862685,0.2905,3443.5,3443.2,0.29052]
[1736272862890,0.2905,3443.4,3443.3,0.2905]
[1736272863687,3.2078,3443.8,3443.1,3.2078]
[1736272863988,0.29052,3443.2,3443.1,3.2078]
[1736272864189,0.29059,3442.3,3442.2,7.863]
[1736272864391,0.72642,3442.6,3442.1,9.08073839]
[1736272864587,0.2906,3442.2,3442.1,9.08073839]
[1736272865088,3.4984,3442.2,3442.1,9.08073839]
[1736272865584,3.4984,3442.2,3441.4,4.6552]
[1736272865585,0.29066,3441.6,3441.4,4.6552]
[1736272865888,3.93432,3442.2,3441.4,4.6552]
[1736272866088,0.29065,3441.7,3441.4,4.94586]
[1736272866289,0.29064,3441.8,3441.5,0.29065]
[1736272866486,3.2078,3442.2,3441.4,4.6552]
[1736272866690,0.29064,3441.8,3441.4,4.94586]
[1736272866887,0.29064,3441.8,3441.4,4.6552]
[1736272867092,3.2078,3442.2,3441.4,4.6552]
[1736272867287,0.29062,3441.9,3441.6,0.29064]
[1736272867487,3.2078,3442.2,3441.4,4.6552]
[1736272867687,0.29063,3441.9,3441.6,0.29064]
[1736272868288,0.29058,3442.5,3442.2,0.29059]
[1736272868489,0.29055,3442.8,3442.2,3.2078]
[1736272868686,0.29055,3442.8,3442.5,0.29057]
[1736272868882,0.29055,3442.8,3442.2,3.2078]
[1736272868883,4.82826051,3443.2,3442.9,0.29054]
[1736272869088,4.82826051,3443.2,3442.8,0.29054]
[1736272869089,0.29052,3443.1,3442.8,0.29054]
[1736272869283,4.53774051,3443.2,3443.1,0.29052]
[1736272869988,3.2078,3444.2,3443.0,3.2078]
[1736272870191,0.29042,3444.3,3444.1,0.29044]
[1736272870386,0.29042,3444.3,3444.0,4.5576]
[1736272870693,4.82816051,3444.4,3444.2,0.29043]
[1736272870895,4.53774051,3444.4,3444.2,0.29043]
[1736272871284,4.53774051,3444.4,3444.3,0.29042]
[1736272871792,0.29039,3444.7,3444.4,0.29041]
[1736272871989,0.2904,3444.6,3444.4,0.29041]
[1736272873197,3.2078,3444.8,3444.0,4.5576]
[1736272873395,0.2904,3444.6,3444.3,0.29041]
[1736272873599,3.2078,3445.0,3444.0,4.5576]
[1736272873795,0.29039,3444.7,3444.0,4.5576]
[1736272873993,3.2078,3445.0,3444.0,4.5576]
[1736272873994,0.2904,3444.6,3444.0,4.5576]
[1736272874295,0.29039,3444.7,3444.5,0.2904]
[1736272875100,4.6946,3445.2,3444.3,3.2078]
[1736272875299,0.29038,3444.8,3444.7,3.2078]
[1736272875504,0.29034,3445.3,3445.0,0.29036]
[1736272875800,3.2078,3445.6,3444.7,3.2078]
[1736272876095,0.29035,3445.2,3444.9,0.29037]
[1736272877094,0.29036,3445.0,3444.3,3.49822]
[1736272877303,3.2078,3445.1,3444.3,3.2078]
[1736272877599,0.29038,3444.9,3444.3,3.2078]
[1736272877792,0.29038,3444.9,3444.6,0.29039]
[1736272878196,3.93361,3445.5,3444.3,3.2078]
[1736272878395,0.2904,3444.6,3444.3,3.49822]
[1736272878601,0.29041,3444.6,3444.3,3.49822]
[1736272878893,0.2904,3444.6,3444.3,3.2078]
[1736272879097,0.29036,3445.0,3444.7,0.29039]
[1736272879293,3.2078,3445.5,3444.7,3.2078]
[1736272879500,0.29038,3444.8,3444.7,3.2078]
[1736272879696,0.29037,3445.0,3444.7,3.49819]
[1736272879892,3.2078,3445.5,3444.7,3.2078]
[1736272880099,3.49813,3445.5,3445.2,0.29034]
[1736272880301,3.2078,3445.5,3444.8,8.525]
[1736272880495,3.2078,3445.5,3445.0,0.29036]
[1736272880697,0.29034,3445.3,3445.0,0.29036]
[1736272880897,0.29033,3445.4,3445.1,0.29035]
[1736272881399,0.29035,3445.3,3445.0,0.29036]
[1736272881805,0.29036,3445.1,3444.9,4.3308]
[1736272881995,3.2078,3445.1,3444.3,3.2078]
[1736272882195,0.2904,3444.6,3444.3,3.49822]
[1736272882396,3.9337,3445.1,3444.3,3.2078]
[1736272882607,0.72592,3445.0,3444.3,3.2078]
[1736272882800,0.29041,3444.4,3444.3,3.2078]
[1736272883108,3.2078,3444.4,3443.4,4.2495]
[1736272883298,3.2078,3444.4,3443.4,8.6065]
[1736272883701,0.72608,3444.2,3443.4,8.6065]
[1736272883898,0.29048,3443.6,3443.4,8.6065]
[1736272884209,4.2957,3444.3,3443.4,8.6065]
[1736272884401,0.72608,3444.2,3443.4,8.6065]
[1736272884705,0.29048,3443.7,3443.5,0.29049]
[1736272884902,3.2078,3444.0,3443.1,3.2078]
[1736272884903,0.29052,3443.2,3443.1,3.2078]
[1736272885899,3.93402,3443.6,3442.5,3.2078]
[1736272886207,3.2078,3443.6,3443.2,0.29051]
[1736272886503,0.2905,3443.4,3443.2,0.29051]
[1736272886704,3.49828,3443.6,3443.3,0.2905]
[1736272886897,0.29049,3443.5,3443.3,0.2905]
[1736272887298,0.95651629,3444.1,3442.4,4.5812]
[1736272887299,3.2078,3444.1,3443.1,3.2078]
[1736272887498,0.29049,3443.6,3443.4,0.29049]
[1736272887699,3.2078,3444.1,3443.2,4.2795]
[1736272887899,0.29047,3443.8,3443.6,0.29048]
[1736272888207,4.2957,3444.3,3443.2,8.767]
[1736272888411,0.29048,3443.6,3443.3,4.9462]
[1736272888606,0.29048,3443.6,3443.4,0.29049]
[1736272889109,0.72613,3444.0,3443.3,4.6557]
[1736272889503,0.29048,3443.7,3443.5,0.29049]
[1736272889707,0.29048,3443.7,3443.6,0.29048]
[1736272890004,0.29048,3443.7,3443.5,0.29049]
[1736272890209,0.29048,3443.7,3443.3,4.6557]
[1736272890210,3.2078,3444.6,3443.6,3.2078]
[1736272890520,0.29041,3444.5,3444.2,0.29043]
[1736272890708,0.29041,3444.5,3444.3,0.29042]
[1736272890911,0.29039,3444.8,3444.5,0.29041]
[1736272891103,7.6809,3445.3,3444.4,4.6206]
[1736272891309,3.2078,3445.3,3445.0,0.29036]
[1736272891510,4.53270438,3445.6,3444.7,3.2078]
[1736272891703,4.53270438,3445.6,3445.1,0.29035]
[1736272891909,0.29033,3445.4,3445.2,0.29035]
[1736272892212,0.29034,3445.3,3445.1,0.29035]
[1736272892407,0.29033,3445.5,3445.2,0.29034]
[1736272892614,0.29033,3445.5,3444.7,3.93376]
[1736272892814,0.29035,3445.3,3444.7,3.2078]
[1736272893115,3.2078,3445.7,3444.7,3.2078]
[1736272893312,3.2078,3445.7,3445.1,3.2078]
[1736272893815,3.2078,3445.7,3445.6,0.29031]
[1736272894210,0.29027,3446.1,3445.9,0.29028]
[1736272894416,0.4379,3446.3,3445.6,3.2078]
[1736272894621,0.29029,3445.9,3445.7,0.2903]
[1736272894908,0.4379,3446.3,3445.6,3.2078]
[1736272895112,0.29029,3446.0,3445.7,0.2903]
[1736272895313,0.29028,3446.0,3445.8,0.29029]
[1736272895615,0.4379,3446.3,3446.2,0.29026]
[1736272895815,0.4379,3446.3,3446.2,3.49806]
[1736272896021,0.4379,3446.3,3445.8,3.2078]
[1736272896219,0.4379,3446.3,3446.0,0.29027]
[1736272896409,0.29028,3446.0,3445.8,3.2078]
[1736272896612,0.29032,3445.5,3445.4,12.2244]
[1736272896826,0.29031,3445.7,3445.4,12.51473]
[1736272897319,0.29032,3445.6,3445.4,12.2244]
[1736272897516,0.4379,3446.3,3445.6,0.29031]
[1736272897724,0.29027,3446.2,3445.9,0.29028]
[1736272897921,0.29028,3446.0,3445.4,12.2244]
[1736272898116,0.29027,3446.2,3445.4,12.2244]
[1736272898325,0.4379,3446.3,3445.9,0.29028]
[1736272898519,0.29027,3446.1,3445.9,0.29028]
[1736272898718,0.29029,3446.0,3445.7,0.2903]
[1736272899024,0.29032,3445.5,3445.4,12.2244]
[1736272899229,0.4379,3446.3,3445.5,0.29032]
[1736272899420,0.2903,3445.8,3445.5,0.29032]
[1736272900130,0.4379,3446.3,3445.4,12.2244]
[1736272900519,0.4379,3446.3,3445.8,3.2078]
[1736272900729,0.4379,3446.3,3446.2,0.29026]
[1736272900923,0.72816,3446.3,3446.0,0.29027]
[1736272901124,0.4379,3446.3,3446.2,0.29026]
[1736272901822,0.4379,3446.3,3445.8,3.2078]
[1736272902025,0.29029,3445.9,3445.8,3.2078]
[1736272902234,0.4379,3446.3,3445.7,0.2903]
[1736272902527,0.29029,3445.9,3445.8,0.2903]
[1736272902724,3.6457,3446.3,3445.5,3.2078]
[1736272903126,0.29029,3445.9,3445.8,0.29029]
[1736272903622,3.6457,3446.3,3445.5,3.2078]
[1736272903930,0.29031,3445.6,3445.5,3.2078]
[1736272904627,0.29031,3445.6,3445.5,3.49812]
[1736272905032,4.3056,3446.2,3445.5,3.2078]
[1736272905217,0.29031,3445.6,3445.5,3.49812]
[1736272905730,3.6457,3446.3,3445.5,3.49812]
[1736272905731,3.6457,3446.3,3445.5,3.2078]
[1736272905930,3.6457,3446.3,3445.5,5.95786458]
[1736272906131,0.29028,3446.1,3446.0,0.29028]
[1736272907122,0.29028,3446.1,3445.9,0.29028]
[1736272907328,0.2903,3445.8,3445.7,0.2903]
[1736272907527,0.4379,3446.3,3445.5,3.2078]
[1736272907727,0.29031,3445.6,3445.5,3.2078]
[1736272908330,0.7258,3445.6,3444.5,8.8013]
[1736272908630,0.29033,3445.4,3444.9,0.29037]
[1736272908828,0.29039,3444.8,3444.5,8.8013]
[1736272909123,0.29041,3444.5,3444.3,3.2078]
[1736272909333,3.2078,3444.8,3444.3,3.2078]
[1736272909632,0.29041,3444.4,3444.3,3.49822]
[1736272910325,4.6607,3445.1,3444.3,3.2078]
[1736272910528,0.2904,3444.7,3444.6,0.29039]
[1736272911027,0.29041,3444.6,3444.5,0.2904]
[1736272911423,0.29038,3444.9,3444.8,0.29038]
[1736272911823,0.29039,3444.7,3444.6,0.2904]
[1736272912431,3.9337,3445.2,3444.3,3.2078]
[1736272912635,0.29041,3444.6,3444.5,0.2904]
[1736272912834,0.29042,3444.4,3444.3,3.2078]
[1736272913128,3.2078,3444.4,3443.6,3.2078]
[1736272913430,0.72607,3444.3,3443.6,3.2078]
[1736272913624,0.29045,3444.0,3443.9,0.29045]
[1736272913836,0.29046,3443.9,3443.8,0.29046]
[1736272914226,3.2078,3444.4,3443.6,3.2078]
[1736272914420,0.29047,3443.9,3443.8,0.29046]
[1736272915330,0.29045,3444.0,3443.9,0.29045]
[1736272915723,0.29048,3443.7,3443.6,3.2078]
[1736272915923,0.29048,3443.7,3443.6,3.49828]
[1736272916124,0.72607,3444.3,3443.6,3.2078]
[1736272916333,0.29047,3443.9,3443.8,0.29047]
[1736272916533,0.72607,3444.3,3443.6,3.2078]
[1736272916736,0.29048,3443.7,3443.6,3.49828]
[1736272917231,0.72607,3444.3,3443.6,3.2078]
[1736272917434,0.29048,3443.7,3443.6,3.49828]
[1736272917836,0.29048,3443.7,3443.6,3.2078]
[1736272918436,0.29048,3443.7,3443.6,3.49828]
[1736272918926,0.29048,3443.7,3443.6,3.2078]
[1736272919435,0.29048,3443.7,3443.6,3.49828]
[1736272919831,0.29048,3443.7,3443.6,3.2078]
[1736272920032,0.29048,3443.7,3443.6,3.49828]
[1736272920830,0.29048,3443.7,3443.6,3.2078]
[1736272921429,3.2078,3444.0,3442.9,7.73603063]
[1736272921624,3.2078,3444.0,3443.0,0.72634]
[1736272921839,1.01666,3443.8,3443.2,0.29052]
[1736272922134,4.4154,3443.7,3442.9,7.73603063]
[1736272922336,0.29051,3443.3,3442.9,7.73603063]
[1736272922638,0.29053,3443.1,3443.0,0.29053]
[1736272923036,3.2078,3443.2,3442.3,4.52823063]
[1736272923231,0.29058,3442.5,3442.4,3.49838]
[1736272923435,0.29058,3442.5,3442.4,0.29058]
[1736272923637,0.72636,3443.0,3442.3,4.52823063]
[1736272923638,0.29058,3442.4,3442.3,4.52823063]
[1736272924040,0.29058,3442.4,3442.3,4.81882063]
[1736272924237,3.2078,3443.2,3442.6,0.29056]
[1736272924446,3.2078,3443.2,3442.1,4.5449]
[1736272924447,0.29052,3443.2,3443.1,0.29052]
[1736272924937,0.29054,3443.0,3442.9,0.29053]
[1736272925135,0.72624,3443.5,3442.4,0.29058]
[1736272925136,0.29055,3442.8,3442.4,0.29058]
[1736272925332,0.29059,3442.4,3442.3,0.29059]
[1736272925525,0.29059,3442.4,3442.1,4.5449]
[1736272925526,0.29058,3442.5,3442.4,0.29058]
[1736272926030,0.29058,3442.5,3442.2,0.2906]
[1736272926227,0.2906,3442.2,3442.1,0.29061]
[1736272926430,0.29053,3443.1,3442.9,0.29054]
[1736272926641,3.2078,3443.3,3442.5,0.72645]
[1736272926839,3.2078,3443.3,3442.4,3.2078]
[1736272927036,0.2905,3443.5,3443.3,0.2905]
[1736272927337,4.4154,3443.7,3443.3,3.2078]
[1736272927538,2.26877625,3443.9,3443.8,0.29047]
[1736272927743,2.26877625,3443.9,3443.8,3.49827]
[1736272928630,0.72598,3444.8,3443.8,3.2078]
[1736272928935,8.6329,3445.3,3444.2,3.2078]
[1736272929138,8.6329,3445.3,3444.3,0.29042]
[1736272929139,0.29038,3444.9,3444.3,0.29042]
[1736272929338,3.2078,3445.2,3444.2,3.2078]
[1736272929534,0.2904,3444.7,3444.4,0.29041]
[1736272929937,3.2078,3444.8,3444.2,3.2078]
[1736272930137,0.29041,3444.6,3444.3,0.29042]
[1736272930342,0.29044,3444.2,3443.8,0.29047]
[1736272930635,3.2078,3444.8,3443.7,7.7744]
[1736272930841,0.29044,3444.2,3444.0,0.29045]
[1736272931434,3.2078,3444.8,3443.7,7.7744]
[1736272931639,0.2904,3444.6,3443.8,0.72616]
[1736272931836,3.2078,3444.8,3443.8,0.72616]
[1736272932037,3.2078,3444.8,3443.9,2.75347483]
[1736272932242,3.2078,3444.8,3444.7,0.29039]
[1736272933032,3.2078,3444.8,3444.3,3.2078]
[1736272933245,0.29042,3444.4,3444.2,0.29043]
[1736272933537,0.29044,3444.2,3444.0,0.29045]
[1736272933845,2.75347483,3444.7,3443.9,3.2078]
[1736272934343,4.2375,3445.3,3444.3,3.2078]
[1736272934537,0.29037,3445.0,3444.8,0.29038]
[1736272934739,0.29035,3445.2,3444.7,3.2078]
[1736272935045,2.75347483,3445.9,3445.1,3.2078]
[1736272935345,0.29032,3445.6,3445.3,0.29034]
[1736272935538,2.26877625,3446.2,3445.1,3.2078]
[1736272935539,0.29028,3446.0,3445.7,0.2903]
[1736272935736,0.2903,3445.8,3445.5,0.29032]
[1736272936242,0.2903,3445.9,3445.6,0.29031]
[1736272936838,7.85087483,3446.3,3445.2,0.29035]
[1736272937047,7.85087483,3446.3,3445.1,3.2078]
[1736272937447,7.85087483,3446.3,3446.0,0.29028]
[1736272937448,0.4379,3446.3,3446.0,0.29028]
[1736272937749,0.4379,3446.3,3446.2,3.49807]
[1736272938746,0.4379,3446.3,3446.2,3.2078]
[1736272938947,0.4379,3446.3,3446.1,3.2078]
[1736272939342,0.4379,3446.3,3446.0,0.29027]
[1736272939539,2.26877625,3447.2,3446.0,0.29027]
[1736272939540,2.50042689,3447.9,3446.2,3.2078]
[1736272939849,2.26877625,3447.9,3447.1,3.2078]
[1736272940044,0.29014,3447.8,3447.3,0.29017]
[1736272940245,2.26877625,3447.9,3447.1,3.2078]
[1736272940746,2.26877625,3447.9,3447.8,0.29013]
[1736272941349,0.43775,3448.1,3448.0,0.29011]
[1736272941541,0.43775,3448.1,3448.0,3.49791]
[1736272941752,0.29005,3448.8,3448.1,0.29011]
[1736272942046,3.39202973,3449.2,3449.1,0.29002]
[1736272942246,4.53270438,3449.4,3449.3,0.29]
[1736272942647,4.53270438,3449.4,3449.1,3.2078]
[1736272942842,0.72495,3449.7,3448.7,3.2078]
[1736272943145,3.2078,3449.6,3448.7,3.2078]
[1736272943345,3.2078,3449.6,3448.7,6.32815594]
[1736272943545,7.74050438,3450.7,3449.1,3.2078]
[1736272943850,7.74050438,3450.7,3449.7,3.12035594]
[1736272944353,0.2899,3450.6,3449.7,3.41032594]
[1736272944545,0.2899,3450.6,3449.7,3.12035594]
[1736272944747,0.28993,3450.3,3449.8,0.28996]
[1736272945054,0.2899,3450.6,3450.2,3.12035594]
[1736272945354,3.2078,3450.7,3450.2,3.12035594]
[1736272945648,0.28992,3450.3,3450.2,3.12035594]
[1736272946055,3.2078,3450.7,3450.2,3.12035594]
[1736272946652,3.2078,3450.7,3449.9,3.2078]
[1736272946847,0.28993,3450.2,3449.9,3.2078]
[1736272947043,3.2078,3450.7,3449.9,3.2078]
[1736272947243,3.2078,3450.7,3450.2,3.41028594]
[1736272947446,3.2078,3450.7,3450.3,0.28992]
[1736272947949,0.28984,3451.3,3450.7,0.28988]
[1736272948156,3.2078,3451.5,3451.0,3.12035594]
[1736272948356,0.28985,3451.1,3451.0,3.12035594]
[1736272948551,0.28989,3450.7,3450.5,3.12035594]
[1736272948751,3.2078,3451.1,3450.5,3.12035594]
[1736272948951,3.2078,3451.1,3450.0,7.56135594]
[1736272949156,0.2899,3450.6,3450.0,7.85129594]
[1736272949452,3.2078,3451.1,3450.0,7.85129594]
[1736272949453,0.2899,3450.5,3450.0,7.85129594]
[1736272949652,3.2078,3451.1,3450.0,7.56135594]
[1736272949849,0.28986,3451.0,3450.9,3.12035594]
[1736272950052,0.28988,3450.8,3450.3,3.49772]
[1736272950247,0.28992,3450.4,3449.0,0.29002]
[1736272950445,3.2078,3449.5,3448.4,3.2078]
[1736272950652,1.445,3450.3,3448.6,3.12035594]
[1736272950653,3.2078,3450.0,3448.6,3.12035594]
[1736272950848,0.28996,3449.8,3449.2,0.29001]
[1736272951048,1.445,3450.3,3448.6,3.12035594]
[1736272951049,0.28998,3449.6,3449.3,3.2078]
[1736272951248,3.2078,3450.0,3449.3,3.2078]
[1736272951447,3.2078,3450.0,3448.2,4.2721]
[1736272951448,0.29002,3449.2,3448.9,3.2078]
[1736272951656,0.29001,3449.3,3448.9,3.2078]
[1736272951958,3.2078,3450.0,3448.9,3.2078]
[1736272952154,0.29002,3449.2,3448.9,3.2078]
[1736272952449,0.72489,3449.9,3448.9,3.2078]
[1736272952656,0.29,3449.4,3449.1,0.29002]
[1736272953053,3.2078,3450.0,3449.1,0.29002]
[1736272953259,0.29001,3449.2,3449.0,0.29002]
[1736272953862,0.29002,3449.1,3448.8,0.29004]
[1736272954262,3.2078,3449.6,3448.5,3.2078]
[1736272954263,0.29006,3448.6,3448.5,3.2078]
[1736272954464,3.2078,3449.6,3448.2,4.2721]
[1736272954465,3.2078,3448.9,3448.2,4.2721]
[1736272954658,0.29009,3448.3,3448.2,4.2721]
[1736272954865,1.01521,3448.7,3447.8,0.29013]
[1736272955056,0.29012,3448.0,3447.8,0.29013]
[1736272955253,0.29013,3447.8,3447.6,3.49794]
[1736272955454,0.29013,3447.8,3447.6,0.29014]
[1736272955853,4.5341,3449.4,3447.5,0.4383]
[1736272955854,3.2078,3448.1,3447.5,0.4383]
[1736272956060,0.29015,3447.6,3447.5,0.4383]
[1736272956469,3.2078,3448.1,3447.6,0.29014]
[1736272956662,3.2078,3448.1,3447.5,0.4383]
[1736272956663,0.29015,3447.6,3447.5,0.4383]
[1736272956861,3.2078,3448.1,3447.5,0.4383]
[1736272957056,0.29015,3447.6,3447.5,0.4383]
[1736272957660,3.2078,3448.1,3447.5,3.6461]
[1736272957864,0.29015,3447.6,3447.5,0.4383]
[1736272959462,0.72547,3447.2,3446.4,4.3308]
[1736272959761,0.29024,3446.5,3446.4,4.3308]
[1736272959963,3.2078,3447.2,3446.1,3.2078]
[1736272960166,0.72548,3447.1,3446.2,0.29026]
[1736272960368,3.2078,3446.7,3446.1,3.49807]
[1736272960868,0.29026,3446.2,3446.1,3.2078]
[1736272961364,3.2078,3446.3,3445.6,4.6949]
[1736272961666,0.29032,3445.6,3445.3,0.29034]
[1736272961855,0.29034,3445.3,3445.2,3.2078]
[1736272962054,0.29031,3445.7,3445.2,3.49814]
[1736272962258,3.2078,3445.8,3445.2,3.2078]
[1736272962659,6.32815594,3445.3,3443.5,7.73603063]
[1736272962858,3.2078,3444.3,3443.5,3.2078]
[1736272963166,3.2078,3444.3,3444.2,0.29043]
[1736272963466,3.2078,3444.3,3443.5,3.2078]
[1736272963765,3.2078,3444.3,3444.2,0.29043]
[1736272964356,3.2078,3444.7,3444.5,0.2904]
[1736272964665,3.2078,3444.7,3444.6,0.2904]
[1736272965367,3.2078,3444.7,3443.9,3.2078]
[1736272965568,3.2078,3444.7,3444.4,0.29041]
[1736272965866,3.12035594,3445.7,3444.4,0.29041]
[1736272965867,3.2078,3445.2,3444.8,0.29037]
[1736272966264,3.2078,3445.2,3444.6,0.29039]
[1736272966265,0.29035,3445.1,3444.6,0.29039]
[1736272966469,0.29035,3445.1,3444.7,0.29038]
[1736272966855,3.2078,3445.2,3444.9,0.29036]
[1736272967064,3.2078,3445.2,3445.1,0.29035]
[1736272967467,0.29025,3446.3,3445.1,8.2078]
[1736272967670,0.29023,3446.5,3446.1,0.29026]
[1736272967866,0.29027,3446.1,3445.9,3.2078]
[1736272968170,0.29028,3446.0,3445.9,3.2078]
[1736272968574,3.2078,3446.3,3445.2,3.49814]
[1736272968764,3.2078,3446.3,3445.2,3.2078]
[1736272968964,3.2078,3445.9,3445.0,3.2078]
[1736272969162,0.29032,3445.5,3445.0,3.49816]
[1736272969365,3.2078,3445.9,3445.0,3.2078]
[1736272969665,3.2078,3446.0,3445.0,3.2078]
[1736272969867,0.29036,3445.1,3445.0,3.2078]
[1736272970065,0.29033,3445.4,3445.1,0.29035]
[1736272970266,0.29034,3445.3,3445.0,3.49816]
[1736272970570,0.29033,3445.5,3445.1,0.29035]
[1736272971270,0.29032,3445.6,3445.2,0.29034]
[1736272971474,0.29032,3445.5,3445.2,0.29034]
[1736272971765,3.2078,3446.0,3445.2,0.29034]
[1736272971970,0.29029,3445.9,3445.0,3.2078]
[1736272972168,3.2078,3446.0,3445.0,3.2078]
[1736272972364,0.29033,3445.4,3445.0,3.49816]
[1736272972871,0.29034,3445.3,3445.0,3.49816]
[1736272973765,3.93351,3446.0,3445.0,3.2078]
[1736272974073,0.29033,3445.4,3445.1,0.29035]
[1736272974263,3.2078,3446.0,3445.0,3.2078]
[1736272974980,0.29029,3445.9,3445.4,0.29033]
[1736272975173,0.29031,3445.6,3445.4,0.29033]
[1736272975373,3.2078,3446.0,3445.3,0.29033]
[1736272975575,0.29032,3445.5,3445.3,0.29033]
[1736272975975,0.29032,3445.5,3445.4,0.29033]
[1736272976171,3.2078,3446.0,3445.4,0.29033]
[1736272976374,3.2078,3446.4,3445.8,3.2078]
[1736272976680,3.2078,3447.0,3445.8,3.2078]
[1736272976874,0.29025,3446.4,3446.3,3.2078]
[1736272977383,0.29024,3446.5,3446.4,0.29024]
[1736272977583,0.72549,3447.0,3446.3,3.49805]
[1736272977780,0.29025,3446.4,3446.3,3.2078]
[1736272977986,0.29024,3446.5,3446.3,3.49805]
[1736272978181,3.2078,3447.0,3446.3,3.2078]
[1736272978384,3.2078,3447.4,3446.3,3.2078]
[1736272978588,0.29025,3446.4,3446.3,3.2078]
[1736272979672,3.2078,3446.4,3445.6,3.2078]
[1736272979882,0.29029,3445.9,3445.7,0.2903]
[1736272980082,3.2078,3446.4,3445.6,3.2078]
[1736272980285,0.72564,3446.3,3445.6,3.2078]
[1736272980478,0.29029,3445.9,3445.7,0.2903]
[1736272980679,0.29029,3445.9,3444.7,1.444]
[1736272980680,3.2078,3446.0,3445.2,3.2078]
[1736272980985,0.29033,3445.4,3445.2,3.49814]
[1736272981483,0.29031,3445.7,3445.2,3.2078]
[1736272981681,0.29031,3445.7,3445.5,0.29031]
[1736272981886,0.29031,3445.7,3445.3,0.29034]
[1736272982085,4.5775,3446.1,3445.2,3.2078]
[1736272982381,0.29031,3445.7,3445.6,3.2078]
[1736272982777,0.29031,3445.7,3444.8,9.0216]
[1736272982778,0.29035,3445.1,3445.0,3.2078]
[1736272983179,3.2078,3445.7,3444.6,3.2078]
[1736272983180,0.29039,3444.7,3444.6,3.2078]
[1736272983489,2.75150686,3445.4,3443.9,5.22363]
[1736272983490,0.29042,3444.3,3444.2,3.2078]
[1736272983684,0.2904,3444.6,3444.4,0.29041]
[1736272983892,3.2078,3445.2,3444.2,3.2078]
[1736272984085,0.29037,3444.9,3444.7,0.29038]
[1736272984289,0.29039,3444.8,3444.6,0.29039]
[1736272984585,0.72589,3445.1,3444.2,7.6376]
[1736272984789,0.29042,3444.3,3444.2,3.2078]
[1736272984985,0.29042,3444.3,3443.3,4.4048]
[1736272985183,0.29045,3444.0,3443.8,0.29046]
[1736272985386,0.72606,3444.3,3443.7,0.29047]
[1736272985881,0.29046,3443.8,3443.7,0.29047]
[1736272986985,0.29046,3443.9,3443.8,0.29046]
[1736272987577,3.2078,3444.4,3443.6,3.2078]
[1736272987578,0.29045,3444.0,3443.9,0.29045]
[1736272988489,0.29045,3444.0,3443.6,3.2078]
[1736272988490,0.72597,3444.8,3443.7,0.72619]
[1736272988683,0.29042,3444.4,3444.3,0.29042]
[1736272988884,3.2078,3444.9,3444.0,3.2078]
[1736272989095,0.29038,3444.8,3444.7,0.29038]
[1736272989288,3.2078,3444.9,3444.4,3.2078]
[1736272989485,0.29038,3444.8,3444.7,0.29038]
[1736272989989,0.29038,3444.9,3444.8,0.29038]
[1736272990490,0.29038,3444.9,3444.8,3.49818]
[1736272990691,0.29036,3445.1,3444.9,0.29037]
[1736272990992,4.4003,3445.5,3444.8,3.2078]
[1736272991186,0.29036,3445.1,3444.9,0.29037]
[1736272991388,3.93361,3445.6,3445.4,0.29032]
[1736272991389,3.49812,3445.6,3445.4,0.29032]
[1736272991589,0.29032,3445.5,3445.0,0.29036]
[1736272991792,3.49812,3445.6,3445.4,0.29033]
[1736272991992,3.49812,3445.6,3445.5,0.29032]
[1736272992189,0.29032,3445.5,3445.4,0.29033]
[1736272992387,3.49812,3445.6,3444.9,0.72594]
[1736272992594,3.2078,3445.6,3445.5,0.29032]
[1736272992789,3.2078,3445.6,3444.9,0.72594]
[1736272992790,4.6611,3446.0,3445.6,0.29031]
[1736272992990,4.6611,3446.0,3445.4,3.2078]